bitfinex/quotes_ETHUSD_20240718
["timestamp","ask_amount","ask_price","bid_price","bid_amount"]
[1721294237367,2.89084,3459.2,3458.8,0.55]
[1721294237590,0.84409607,3459.1,3458.9,0.15827743]
[1721294237741,0.84409607,3459.1,3459.0,0.55]
[1721294238143,0.84409607,3459.1,3459.0,0.15827743]
[1721294238374,0.84409607,3459.1,3459.0,0.55]
[1721294238550,0.84409607,3459.1,3459.0,0.70827743]
[1721294239877,9.10993607,3459.1,3459.0,0.15827743]
[1721294240190,2.89118,3458.8,3458.1,2.8917]
[1721294240693,10.25039,3459.8,3458.2,2.12336402]
[1721294240694,2.89089,3459.2,3458.2,2.12336402]
[1721294240905,2.4262,3459.5,3458.6,2.89128]
[1721294240906,2.89072,3459.4,3458.6,2.89128]
[1721294241061,0.84404194,3459.3,3458.6,2.89128]
[1721294241248,0.84404194,3459.3,3458.7,0.9975613]
[1721294241450,3.73485194,3459.3,3458.7,0.9975613]
[1721294241757,0.84404188,3459.2,3458.7,0.9975613]
[1721294242245,2.89081,3459.3,3458.7,0.9975613]
[1721294242440,2.89088,3459.2,3458.7,0.9975613]
[1721294242677,2.89088,3459.2,3458.7,0.7084333]
[1721294242984,2.89072,3459.4,3458.7,0.7084333]
[1721294242985,2.89101,3459.0,3458.7,0.7084333]
[1721294243286,2.89117,3458.8,3458.7,0.7084333]
[1721294244688,6.62652726,3458.8,3458.7,0.1584333]
[1721294244851,13.74627857,3458.8,3458.7,0.1584333]
[1721294245051,13.74627857,3458.8,3457.2,5.98339771]
[1721294245052,2.89181,3458.1,3457.2,5.38237]
[1721294245271,2.89198,3457.9,3457.2,5.38237]
[1721294245596,2.89198,3457.9,3457.3,0.15876233]
[1721294246027,2.89209,3457.7,3457.3,0.15876233]
[1721294246177,2.89223,3457.6,3457.3,0.15876233]
[1721294246511,2.89223,3457.6,3456.9,2.89276]
[1721294246668,2.89223,3457.6,3457.4,0.15858804]
[1721294246858,2.89223,3457.6,3456.9,2.89276]
[1721294247058,2.89223,3457.6,3457.0,0.775062]
[1721294247303,2.89223,3457.6,3457.0,0.93365004]
[1721294247501,2.89209,3457.7,3457.0,3.82630004]
[1721294247775,5.31771,3458.5,3457.3,2.89237]
[1721294247776,2.89163,3458.3,3457.3,2.89237]
[1721294248040,2.89163,3458.3,3457.5,2.89221]
[1721294248041,2.89167,3458.2,3457.5,2.89221]
[1721294248240,2.89167,3458.2,3457.6,0.32811895]
[1721294248440,2.89167,3458.2,3457.7,0.55]
[1721294248630,2.89167,3458.2,3457.7,0.70881902]
[1721294251637,2.89178,3458.1,3457.7,0.70881902]
[1721294253828,2.89169,3458.2,3457.7,1.06892492]
[1721294254145,2.89161,3458.3,3457.7,1.06892492]
[1721294254516,10.36,3458.7,3457.7,1.06892492]
[1721294254717,2.89148,3458.5,3457.7,3.96098492]
[1721294254927,2.89148,3458.5,3457.8,0.74307505]
[1721294255122,2.89138,3458.6,3457.8,0.74307505]
[1721294255123,2.89151,3458.4,3457.9,0.55]
[1721294255341,2.89151,3458.4,3458.0,0.15881902]
[1721294255537,2.89151,3458.4,3458.1,0.55]
[1721294255750,2.89151,3458.4,3458.2,0.15881902]
[1721294255962,2.89151,3458.4,3458.3,0.55]
[1721294259753,3.1925859,3458.6,3458.3,0.55]
[1721294260090,2.89147,3458.5,3458.3,0.55]
[1721294260238,2.89151,3458.4,3458.3,0.55]
[1721294260756,2.89151,3458.4,3458.3,0.70886522]
[1721294261068,0.3012059,3458.6,3458.3,0.70886522]
[1721294261548,0.3012059,3458.6,3458.4,0.15886522]
[1721294261877,0.3012059,3458.6,3458.5,0.55]
[1721294262222,0.3012059,3458.6,3458.5,0.7086429]
[1721294270204,7.10233017,3459.7,3458.7,2.89118]
[1721294270355,2.89046,3459.7,3458.9,2.89107]
[1721294270555,14.54227559,3460.0,3459.0,3.59953228]
[1721294270556,0.30113386,3459.6,3459.0,3.59953228]
[1721294270852,0.30113386,3459.6,3459.1,0.05781218]
[1721294271051,0.30113386,3459.6,3459.2,1.20484145]
[1721294271252,13.85428542,3460.0,3459.3,2.89075]
[1721294271550,13.85428542,3460.0,3459.4,0.55]
[1721294271762,14.15539071,3460.0,3459.4,0.55]
[1721294272052,14.15539071,3460.0,3459.5,0.15837735]
[1721294272247,14.15539071,3460.0,3459.6,0.55]
[1721294272491,2.89025,3459.9,3459.6,0.55]
[1721294272785,2.89025,3459.9,3459.4,0.55]
[1721294273301,2.89025,3459.9,3459.5,0.15837735]
[1721294273456,2.89025,3459.9,3459.6,0.55]
[1721294273875,2.89025,3459.9,3459.4,0.55]
[1721294274185,11.26521071,3460.0,3459.4,0.9983395]
[1721294274483,11.26521071,3460.0,3459.6,2.8905]
[1721294274689,11.26521071,3460.0,3459.7,0.55]
[1721294275051,11.26521071,3460.0,3459.8,0.15837735]
[1721294275252,11.26521071,3460.0,3459.9,0.55]
[1721294275882,11.26521071,3460.0,3459.9,0.15837735]
[1721294276196,11.26521071,3460.0,3459.9,3.95850609]
[1721294276352,11.26521071,3460.0,3459.9,3.80012874]
[1721294276552,11.26521071,3460.0,3459.9,3.95850609]
[1721294276793,11.26521071,3460.0,3459.9,6.84875609]
[1721294277032,10.96410542,3460.0,3459.9,6.84875609]
[1721294277791,10.96410542,3460.0,3459.9,9.28965609]
[1721294279591,10.96410542,3460.0,3459.9,6.39940609]
[1721294281385,10.96410542,3460.0,3459.9,3.50915609]
[1721294282561,10.96410542,3460.0,3459.9,6.39940609]
[1721294282970,10.96410542,3460.0,3459.9,3.50915609]
[1721294283387,10.96410542,3460.0,3459.9,6.39940609]
[1721294284167,10.96410542,3460.0,3459.9,3.50915609]
[1721294284366,10.96410542,3460.0,3459.9,1.06825609]
[1721294285278,10.96410542,3460.0,3459.9,0.70837735]
[1721294286296,10.96410542,3460.0,3459.9,3.59862735]
[1721294289404,10.96410542,3460.0,3459.9,6.48887735]
[1721294289763,10.96410542,3460.0,3459.9,8.83567735]
[1721294292869,10.96410542,3460.0,3459.9,5.94542735]
[1721294293088,10.96410542,3460.0,3459.9,3.59862735]
[1721294293902,10.96410542,3460.0,3459.9,0.15837735]
[1721294294104,10.96410542,3460.0,3459.6,2.89048]
[1721294294274,10.96410542,3460.0,3459.9,0.15728127]
[1721294294474,10.96410542,3460.0,3459.6,2.89048]
[1721294294675,10.96410542,3460.0,3459.9,0.15728127]
[1721294294895,10.96410542,3460.0,3459.4,2.8906]
[1721294295083,10.96410542,3460.0,3459.9,0.15728127]
[1721294295084,16.32685542,3460.0,3459.9,0.15728127]
[1721294295285,16.32685542,3460.0,3458.8,2.89113]
[1721294295286,15.66052089,3460.0,3458.8,2.89113]
[1721294295597,15.66052089,3460.0,3458.9,0.15203856]
[1721294295598,2.89086,3459.2,3458.9,0.15203856]
[1721294296008,2.89093,3459.1,3458.5,2.89141]
[1721294296593,2.89093,3459.1,3458.6,0.15203856]
[1721294296994,2.89093,3459.1,3458.4,2.8915]
[1721294297195,2.89093,3459.1,3458.7,0.15203856]
[1721294297447,2.89093,3459.1,3458.5,2.89142]
[1721294297599,2.89093,3459.1,3458.8,0.15203856]
[1721294297933,2.89093,3459.1,3458.9,0.15203856]
[1721294298237,2.89093,3459.1,3459.0,0.55]
[1721294298948,2.89093,3459.1,3459.0,0.70203856]
[1721294299251,2.89084,3459.2,3459.0,0.70203856]
[1721294299738,5.21142,3459.7,3459.0,0.70203856]
[1721294299962,2.89042,3459.7,3459.0,0.55]
[1721294300099,2.89042,3459.7,3459.0,0.6078138]
[1721294300430,2.89051,3459.6,3459.1,0.15243945]
[1721294300742,2.8904,3459.8,3459.2,0.55]
[1721294301058,10.25029,3459.9,3459.2,0.60781074]
[1721294301349,2.89029,3459.9,3459.2,0.60781074]
[1721294301713,2.89029,3459.9,3459.3,0.15243945]
[1721294301912,2.89034,3459.8,3459.4,0.55]
[1721294302413,2.89034,3459.8,3459.3,0.55]
[1721294302811,2.89025,3459.9,3459.3,0.55]
[1721294304322,2.89034,3459.8,3459.3,0.55]
[1721294304556,11.26632335,3460.0,3459.4,0.15243945]
[1721294304557,2.89048,3459.7,3459.4,0.15243945]
[1721294304757,2.89051,3459.6,3459.5,0.55]
[1721294305061,2.89038,3459.8,3459.5,0.55]
[1721294305211,2.89038,3459.8,3459.2,0.55]
[1721294305571,3.19268342,3459.7,3459.2,1.07486795]
[1721294305847,3.19268342,3459.7,3459.3,0.15243945]
[1721294306054,3.19268342,3459.7,3459.4,0.55]
[1721294306254,3.19268342,3459.7,3459.2,0.55]
[1721294306469,0.30225342,3459.7,3459.2,0.55]
[1721294306614,0.30225342,3459.7,3459.4,2.89066]
[1721294306812,0.30225342,3459.7,3459.5,0.55]
[1721294307235,0.30225342,3459.7,3459.6,0.15274512]
[1721294307439,0.30225342,3459.7,3459.6,0.70274512]
[1721294307672,0.30225342,3459.7,3459.6,0.55]
[1721294307961,0.30225342,3459.7,3459.6,0.15274512]
[1721294308112,0.30225342,3459.7,3459.6,0.55]
[1721294308463,0.30225342,3459.7,3459.6,0.70274512]
[1721294309351,3.19267342,3459.7,3459.6,0.70274512]
[1721294309511,3.19267342,3459.7,3459.6,0.55]
[1721294309706,3.19267342,3459.7,3458.3,2.89158]
[1721294309707,2.89089,3459.2,3458.1,5.3387]
[1721294309936,2.89089,3459.2,3457.9,2.89192]
[1721294309937,2.89078,3459.3,3457.9,5.78374]
[1721294310163,2.89078,3459.3,3457.9,2.89186]
[1721294310352,2.89135,3458.6,3457.9,2.89186]
[1721294310511,2.89135,3458.6,3458.0,0.578392]
[1721294310946,2.89135,3458.6,3457.9,2.89186]
[1721294311152,2.89135,3458.6,3458.0,2.89183]
[1721294311349,2.89135,3458.6,3458.1,0.55]
[1721294311567,2.89135,3458.6,3457.9,2.89188]
[1721294311568,5.78277,3458.6,3457.9,2.89188]
[1721294311870,5.78277,3458.6,3458.0,0.55]
[1721294312073,5.78277,3458.6,3458.1,0.344188]
[1721294312375,5.78277,3458.6,3458.2,0.55]
[1721294313045,2.89135,3458.6,3458.2,0.55]
[1721294313270,2.89121,3458.8,3458.2,0.55]
[1721294313476,7.36,3459.3,3458.2,0.55]
[1721294313778,2.89131,3458.7,3458.2,0.55]
[1721294313964,2.89136,3458.6,3458.2,0.55]
[1721294314988,2.85558022,3458.5,3458.2,0.55]
[1721294315639,5.74708022,3458.5,3458.2,0.55]
[1721294315839,2.89156,3458.4,3458.2,0.55]
[1721294316044,2.89159,3458.3,3458.2,0.55]
[1721294317361,2.89159,3458.3,3458.2,0.7028259]
[1721294320771,3.15792093,3458.5,3458.2,0.7028259]
[1721294320974,0.30234071,3458.5,3458.2,0.7028259]
[1721294321567,0.30234071,3458.5,3458.3,0.35946559]
[1721294321767,3.19376071,3458.5,3458.4,0.55]
[1721294322060,3.19376071,3458.5,3458.2,0.55]
[1721294322263,3.19376071,3458.5,3458.3,0.1528259]
[1721294322466,3.19376071,3458.5,3458.4,0.55]
[1721294323178,3.19376071,3458.5,3458.4,0.7028259]
[1721294325076,0.30234071,3458.5,3458.4,0.7028259]
[1721294329316,0.30234071,3458.5,3458.4,1.06228349]
[1721294330707,0.30234071,3458.5,3458.4,3.95379349]
[1721294333718,0.30234071,3458.5,3458.4,1.06228349]
[1721294334600,0.30234071,3458.5,3458.4,0.7028259]
[1721294334807,0.30234071,3458.5,3458.4,3.5943359]
[1721294337310,0.30234071,3458.5,3458.4,0.7028259]
[1721294339013,0.30234071,3458.5,3458.4,0.1528259]
[1721294339014,8.54758071,3458.5,3458.4,0.1528259]
[1721294339184,10.24662637,3458.5,3458.4,0.1528259]
[1721294339512,2.89152,3458.4,3457.6,2.8921]
[1721294339710,2.89152,3458.4,3457.5,2.8922]
[1721294339711,2.89168,3458.2,3457.5,2.8922]
[1721294340016,2.89152,3458.4,3457.7,0.14283758]
[1721294340017,2.89204,3457.8,3457.7,0.14283758]
[1721294340221,2.89204,3457.8,3456.8,2.89282]
[1721294340222,5.34534,3457.8,3456.8,2.89282]
[1721294340515,5.34534,3457.8,3456.6,2.3517]
[1721294340516,2.89239,3457.4,3456.6,2.3517]
[1721294340713,2.89239,3457.4,3456.7,0.524473]
[1721294341217,2.89239,3457.4,3456.8,2.89282]
[1721294343034,2.89205,3457.8,3456.9,2.89276]
[1721294343231,2.89205,3457.8,3457.1,2.89258]
[1721294343417,2.89186,3458.0,3457.2,3.4425]
[1721294344134,0.30242036,3458.1,3457.2,0.55]
[1721294344326,0.30242036,3458.1,3457.6,2.89211]
[1721294344524,0.30242036,3458.1,3457.7,0.55]
[1721294344732,0.30242036,3458.1,3457.8,2.89199]
[1721294344929,0.30242036,3458.1,3457.9,0.55]
[1721294345418,0.30242036,3458.1,3457.8,0.55]
[1721294345601,0.30242036,3458.1,3456.8,5.17502]
[1721294345602,0.30242036,3458.1,3457.7,3.44206]
[1721294345933,0.30242036,3458.1,3457.8,2.89199]
[1721294346110,0.30242036,3458.1,3457.9,0.55]
[1721294346825,0.30242036,3458.1,3457.9,3.44191]
[1721294347022,0.30242036,3458.1,3458.0,0.63339]
[1721294347227,0.30242036,3458.1,3458.0,1.18339]
[1721294347423,0.30242036,3458.1,3458.0,0.69283758]
[1721294348759,8.56174036,3458.1,3458.0,0.14283758]
[1721294348911,9.40614594,3458.1,3458.0,0.14283758]
[1721294349124,2.89217,3457.7,3456.9,7.49]
[1721294349355,0.30242036,3458.1,3457.5,2.8922]
[1721294349727,0.30242036,3458.1,3457.6,0.14307593]
[1721294350053,0.30242036,3458.1,3457.5,2.8922]
[1721294350350,0.30242036,3458.1,3457.6,0.55]
[1721294350761,0.30242036,3458.1,3457.7,0.14307593]
[1721294350925,0.30242036,3458.1,3457.8,0.55]
[1721294351341,0.30242036,3458.1,3457.5,2.8922]
[1721294351342,0.30242036,3458.1,3457.6,0.55]
[1721294351823,0.30242036,3458.1,3457.7,0.14307593]
[1721294352018,3.19420036,3458.1,3457.8,0.55]
[1721294352431,3.19420036,3458.1,3457.9,0.14326832]
[1721294352644,3.19420036,3458.1,3458.0,0.55]
[1721294354359,3.19420036,3458.1,3458.0,0.69325396]
[1721294355437,0.30242036,3458.1,3458.0,0.69325396]
[1721294356355,3.19418036,3458.1,3458.0,0.69325396]
[1721294356727,3.8027684,3458.1,3458.0,0.69325396]
[1721294357037,7.5388961,3458.1,3458.0,0.69325396]
[1721294357228,7.5388961,3458.1,3458.0,0.55]
[1721294357428,7.53890026,3458.1,3458.0,0.55]
[1721294357631,9.94210026,3458.1,3458.0,0.55]
[1721294357866,9.94212523,3458.1,3458.0,0.55]
[1721294358166,7.05036523,3458.1,3457.1,2.89253]
[1721294358327,7.05036523,3458.1,3456.1,10.38335]
[1721294358328,2.89275,3457.0,3456.1,10.38335]
[1721294358527,5.78551,3457.0,3456.3,2.89326]
[1721294358959,0.30248634,3456.9,3456.3,2.89326]
[1721294359132,0.30248634,3456.9,3456.1,2.89335]
[1721294359133,0.30248634,3456.9,3456.4,0.578661]
[1721294359335,2.89302,3456.6,3456.0,2.4716]
[1721294359541,5.78611,3456.6,3456.0,2.4716]
[1721294359745,2.89302,3456.6,3455.9,2.89357]
[1721294360360,2.89302,3456.6,3456.0,2.89351]
[1721294360562,2.89302,3456.6,3456.1,0.55]
[1721294360761,2.89302,3456.6,3456.2,0.344351]
[1721294361428,2.89302,3456.6,3456.0,2.89351]
[1721294362257,2.8931,3456.5,3456.0,2.89351]
[1721294362462,2.8931,3456.5,3456.1,0.68878911]
[1721294363441,0.30248634,3456.9,3456.3,2.89321]
[1721294363643,0.30248634,3456.9,3456.4,3.44312]
[1721294363838,0.30248634,3456.9,3456.5,0.633633]
[1721294364056,0.30248634,3456.9,3456.6,0.55]
[1721294364449,0.30248634,3456.9,3456.7,0.13917701]
[1721294364743,0.30248634,3456.9,3456.8,0.55]
[1721294365561,0.30248634,3456.9,3456.8,5.92485701]
[1721294365739,2.89248,3457.3,3456.8,1.15872496]
[1721294365947,0.30245037,3457.1,3456.9,0.55]
[1721294366656,3.19504037,3457.1,3457.0,0.13917701]
[1721294366834,0.30245037,3457.1,3457.0,0.68917701]
[1721294369980,0.30245037,3457.1,3457.0,3.58185701]
[1721294370269,10.25204,3457.8,3457.1,2.89259]
[1721294370473,0.30242322,3457.4,3457.2,0.55]
[1721294370867,0.30242322,3457.4,3457.3,0.13917701]
[1721294371069,0.30242322,3457.4,3457.3,6.33486]
[1721294371368,2.89164,3458.3,3457.6,2.89215]
[1721294371572,2.89164,3458.3,3457.7,0.55]
[1721294371573,0.30239464,3458.0,3457.7,0.55]
[1721294371965,0.30239464,3458.0,3457.8,0.13917701]
[1721294372165,0.30239464,3458.0,3457.9,0.55]
[1721294372599,0.30239464,3458.0,3457.9,0.13917701]
[1721294372745,0.30239464,3458.0,3457.9,0.68917701]
[1721294376280,8.51997464,3458.0,3457.9,0.13917701]
[1721294376490,12.5529841,3458.0,3457.9,0.13917701]
[1721294376789,12.5529841,3458.0,3456.9,2.89274]
[1721294376790,2.89223,3457.6,3456.9,2.89274]
[1721294377142,2.89223,3457.6,3457.0,0.13412117]
[1721294377343,2.89226,3457.5,3456.8,2.89284]
[1721294377659,2.89226,3457.5,3456.8,3.471413]
[1721294377863,2.89226,3457.5,3456.9,0.68412117]
[1721294378079,2.89226,3457.5,3456.9,0.13412117]
[1721294378488,2.89216,3457.7,3456.9,3.02687117]
[1721294378780,5.78411,3457.8,3456.9,3.02687117]
[1721294378983,2.89194,3457.9,3457.0,0.52460795]
[1721294379186,2.89194,3457.9,3456.9,0.13412117]
[1721294379364,2.89243,3457.3,3456.4,2.89314]
[1721294379569,2.89243,3457.3,3456.6,2.89295]
[1721294380181,2.89243,3457.3,3456.7,0.13412117]
[1721294380376,2.89243,3457.3,3456.8,0.55]
[1721294380577,2.85656523,3457.3,3456.8,0.55]
[1721294380994,2.85656523,3457.3,3456.9,0.13412117]
[1721294381155,2.85656523,3457.3,3457.0,0.55]
[1721294381487,2.85656523,3457.3,3457.1,0.13412117]
[1721294381697,2.85656523,3457.3,3457.2,0.55]
[1721294382186,3.15901934,3457.3,3457.2,0.68412117]
[1721294386189,6.88675927,3457.3,3457.2,0.68412117]
[1721294386555,6.88675927,3457.3,3457.2,0.55]
[1721294387090,7.73137246,3457.3,3457.2,0.55]
[1721294389065,6.88675927,3457.3,3457.2,0.55]
[1721294389289,6.89610887,3457.3,3457.2,0.55]
[1721294389505,6.89610839,3457.3,3457.2,0.55]
[1721294389672,4.00362839,3457.3,3457.2,0.55]
[1721294389862,3.15901934,3457.3,3457.2,0.68437973]
[1721294392071,6.08335127,3457.3,3457.2,0.68437973]
[1721294392266,9.82036869,3457.3,3457.2,0.68437973]
[1721294392479,9.82036869,3457.3,3457.2,0.55]
[1721294393704,2.89292,3456.8,3456.1,2.89337]
[1721294393911,2.89298,3456.7,3456.1,2.89337]
[1721294394112,2.89298,3456.7,3456.2,0.94021349]
[1721294394290,0.30249507,3456.6,3456.2,0.94021349]
[1721294394999,0.30249507,3456.6,3456.3,0.55]
[1721294395811,0.30249507,3456.6,3456.4,0.13433949]
[1721294396028,0.30249507,3456.6,3456.5,0.55]
[1721294396667,0.30249507,3456.6,3456.5,0.13433949]
[1721294396863,0.30249507,3456.6,3456.5,0.68433949]
[1721294397071,0.30249507,3456.6,3456.5,0.55]
[1721294397267,0.30249507,3456.6,3456.5,0.13433949]
[1721294397499,0.30249507,3456.6,3456.5,0.55]
[1721294397703,0.30249507,3456.6,3456.5,0.68433949]
[1721294401303,2.89292,3456.8,3456.5,0.68433949]
[1721294401468,2.89292,3456.8,3456.6,0.55]
[1721294401674,2.89293,3456.7,3456.6,0.55]
[1721294402334,3.471515,3456.7,3456.6,0.55]
[1721294403412,2.89292,3456.8,3456.6,0.55]
[1721294403635,2.89277,3456.9,3456.6,0.55]
[1721294403916,4.1362021,3457.3,3456.6,0.55]
[1721294403917,2.89253,3457.2,3456.6,0.55]
[1721294404209,2.89253,3457.2,3456.5,0.55]
[1721294404518,2.89253,3457.2,3456.5,3.44303]
[1721294405017,2.89253,3457.2,3456.5,6.33606]
[1721294405217,2.89253,3457.2,3456.5,3.44303]
[1721294405588,2.8924,3457.4,3456.7,2.89292]
[1721294405798,2.89219,3457.6,3456.7,2.89292]
[1721294405799,2.89219,3457.6,3456.8,0.55]
[1721294405979,2.89219,3457.6,3456.9,2.8927]
[1721294406183,2.89219,3457.6,3457.0,0.55]
[1721294407094,1.21187017,3458.1,3457.1,2.3841]
[1721294407323,0.84437214,3458.0,3457.3,2.89235]
[1721294407622,3.73623214,3458.0,3457.4,0.68448317]
[1721294407799,2.89186,3458.0,3457.4,0.68448317]
[1721294408127,0.84439557,3457.9,3457.4,0.55]
[1721294408318,1.14680417,3457.9,3457.3,0.55]
[1721294408525,0.84443704,3457.8,3457.3,0.55]
[1721294408691,0.84443704,3457.8,3457.4,0.13439984]
[1721294408902,0.84443704,3457.8,3457.5,0.55]
[1721294409519,3.1943386,3457.9,3457.3,3.44242]
[1721294409680,0.84442939,3457.8,3457.3,0.55]
[1721294409876,2.8921,3457.7,3457.4,0.13415961]
[1721294410186,2.8921,3457.7,3457.5,0.55]
[1721294410512,2.8921,3457.7,3457.5,0.13415961]
[1721294410696,2.8921,3457.7,3457.6,0.55]
[1721294410882,2.8921,3457.7,3457.2,0.55]
[1721294411517,2.8921,3457.7,3457.3,0.13415961]
[1721294411824,2.8921,3457.7,3457.4,0.55]
[1721294411996,2.8921,3457.7,3457.4,0.68415961]
[1721294414092,0.3024086,3457.9,3457.4,0.68415961]
[1721294414302,0.3024086,3457.9,3457.5,5.25245]
[1721294414503,0.3024086,3457.9,3457.6,0.55]
[1721294414731,0.3024086,3457.9,3457.6,0.68422282]
[1721294415124,0.3024086,3457.9,3457.6,3.57633282]
[1721294415426,0.3024086,3457.9,3457.7,2.89209]
[1721294415598,0.3024086,3457.9,3457.8,0.55]
[1721294416007,0.3024086,3457.9,3457.8,1.3328741]
[1721294416797,0.3024086,3457.9,3457.8,0.68422282]
[1721294417210,0.3024086,3457.9,3457.8,0.55]
[1721294417211,3.1943286,3457.9,3457.8,0.55]
[1721294419633,0.3024086,3457.9,3456.7,5.3582]
[1721294419792,2.8926,3457.1,3456.3,2.8932]
[1721294420334,2.89291,3456.8,3456.2,2.93681688]
[1721294420539,2.893,3456.7,3456.4,0.12520898]
[1721294420755,2.893,3456.7,3455.9,2.89359]
[1721294420756,2.89307,3456.6,3455.9,2.89359]
[1721294421252,2.89307,3456.6,3456.0,0.12520898]
[1721294422205,2.89307,3456.6,3456.1,0.55]
[1721294422871,2.89307,3456.6,3456.2,0.12520898]
[1721294423330,2.89307,3456.6,3456.3,0.55]
[1721294423535,2.89307,3456.6,3456.3,0.12520898]
[1721294423752,2.89285,3456.8,3456.4,0.55]
[1721294423911,2.89293,3456.7,3456.1,0.55]
[1721294424133,2.89285,3456.8,3456.1,0.55]
[1721294424316,2.89285,3456.8,3456.2,0.1254922]
[1721294424518,2.89285,3456.8,3456.3,0.55]
[1721294424938,2.89285,3456.8,3456.4,0.1254922]
[1721294425129,0.30249564,3457.0,3456.5,0.55]
[1721294425331,0.30249564,3457.0,3456.6,0.12548648]
[1721294425556,0.30249564,3457.0,3456.4,0.55]
[1721294425557,0.30249564,3457.0,3456.7,0.55]
[1721294425864,0.30249564,3457.0,3456.8,0.12548648]
[1721294426018,0.30249564,3457.0,3456.9,0.55]
[1721294426220,0.30249564,3457.0,3456.9,0.54904835]
[1721294426435,0.30249564,3457.0,3456.9,0.67453483]
[1721294426645,0.30249564,3457.0,3456.9,0.54904835]
[1721294427431,0.30249564,3457.0,3456.9,0.12548648]
[1721294427878,0.30249564,3457.0,3456.6,2.89298]
[1721294428044,0.30249564,3457.0,3456.9,0.12548648]
[1721294428356,0.30249564,3457.0,3456.9,0.67548648]
[1721294432116,0.30249564,3457.0,3456.9,0.7118574]
[1721294435460,0.8629822,3457.0,3456.9,0.7118574]
[1721294435662,0.30249564,3457.0,3456.9,0.7118574]
[1721294438058,0.26662478,3457.0,3456.9,0.7118574]
[1721294438763,3.15930478,3457.0,3456.9,0.7118574]
[1721294439872,8.47008478,3457.0,3456.9,0.1618574]
[1721294440050,9.72752828,3457.0,3456.9,0.1618574]
[1721294440231,2.89301,3456.7,3456.0,2.89347]
[1721294440762,2.89301,3456.7,3456.1,0.1565967]
[1721294440763,2.89301,3456.6,3456.1,0.1565967]
[1721294441271,2.89301,3456.6,3456.2,0.55]
[1721294441837,2.89301,3456.6,3456.0,2.89347]
[1721294441838,2.89301,3456.6,3456.1,0.55]
[1721294442065,2.89301,3456.6,3456.1,1.183713]
[1721294442267,2.89292,3456.8,3456.1,4.077143]
[1721294442573,2.89292,3456.8,3456.2,0.15562619]
[1721294442760,2.89292,3456.8,3456.3,0.55]
[1721294443164,2.89281,3456.9,3456.4,0.15562619]
[1721294443349,2.89281,3456.9,3456.1,6.420493]
[1721294443350,2.89287,3456.8,3456.5,0.55]
[1721294443672,2.89287,3456.8,3456.6,0.15562619]
[1721294443879,2.89287,3456.8,3456.7,0.55]
[1721294444368,2.89287,3456.8,3456.7,0.70570346]
[1721294444976,2.89287,3456.8,3456.7,0.55]
[1721294445968,6.2184119,3456.8,3456.7,0.55]
[1721294446379,5.78577,3456.8,3456.7,0.55]
[1721294447274,2.89287,3456.8,3456.7,0.55]
[1721294447842,2.89287,3456.8,3456.7,0.70570346]
[1721294448978,2.89287,3456.8,3456.7,0.55]
[1721294449339,2.89287,3456.8,3456.7,0.70545663]
[1721294450447,2.89287,3456.8,3456.7,0.55]
[1721294451045,2.89287,3456.8,3456.7,0.70545663]
[1721294453052,6.364265,3456.8,3456.7,0.70545663]
[1721294453252,11.805965,3456.8,3456.7,0.70545663]
[1721294453446,11.805965,3456.8,3456.7,0.55]
[1721294454255,9.364265,3456.8,3456.7,0.55]
[1721294455868,12.95093517,3456.8,3456.7,0.55]
[1721294456071,11.739065,3456.8,3456.7,0.55]
[1721294457366,12.95115853,3456.8,3456.7,0.55]
[1721294458304,11.739065,3456.8,3456.7,0.55]
[1721294458602,12.95104202,3456.8,3456.7,0.55]
[1721294459168,15.84388202,3456.8,3456.7,0.55]
[1721294460776,12.95101202,3456.8,3456.7,0.55]
[1721294460977,10.57621202,3456.8,3456.7,0.55]
[1721294461166,13.46905202,3456.8,3456.7,0.55]
[1721294461361,12.257075,3456.8,3456.7,0.55]
[1721294462101,9.364235,3456.8,3456.7,0.55]
[1721294462463,1.21244563,3457.0,3456.7,0.55]
[1721294462666,2.89272,3457.0,3456.7,0.55]
[1721294462924,5.78546,3457.0,3456.8,0.14541237]
[1721294463099,2.89272,3457.0,3456.9,0.55]
[1721294463481,2.89272,3457.0,3456.9,0.14541237]
[1721294463675,2.89272,3457.0,3456.9,0.55]
[1721294463879,2.89272,3457.0,3456.9,0.69541237]
[1721294464994,2.89272,3457.0,3456.9,0.55]
[1721294466917,7.84935295,3457.0,3456.9,0.55]
[1721294467067,7.86459376,3457.0,3456.9,0.55]
[1721294467772,10.75732376,3457.0,3456.9,0.55]
[1721294468888,12.2742782,3457.0,3456.9,0.55]
[1721294469089,8.67818,3457.0,3456.9,0.55]
[1721294469321,9.89169442,3457.0,3456.9,0.55]
[1721294470210,6.99896442,3457.0,3456.9,0.55]
[1721294470605,5.78545,3457.0,3456.9,0.55]
[1721294470809,2.89281,3456.9,3456.7,0.55]
[1721294471010,0.84467009,3456.8,3456.7,0.55]
[1721294471198,3.73751009,3456.8,3456.7,0.55]
[1721294471518,6.63035009,3456.8,3456.7,0.55]
[1721294472020,6.63039436,3456.8,3456.7,0.55]
[1721294472209,7.85573879,3456.8,3456.7,0.55]
[1721294472404,6.63039436,3456.8,3456.7,0.55]
[1721294472809,7.84390878,3456.8,3456.7,0.55]
[1721294473524,12.52323436,3456.8,3456.7,0.55]
[1721294473688,15.26788281,3456.8,3456.7,0.55]
[1721294473887,13.7510073,3456.8,3456.7,0.55]
[1721294474108,15.59739909,3456.8,3456.7,0.55]
[1721294474420,13.52491179,3456.8,3456.7,0.55]
[1721294474600,15.5975157,3456.8,3456.7,0.55]
[1721294475287,14.36972636,3456.8,3456.7,0.55]
[1721294475493,15.59750069,3456.8,3456.7,0.55]
[1721294477037,19.8068256,3456.8,3456.7,0.55]
[1721294477223,19.80674752,3456.8,3456.7,0.55]
[1721294478107,19.80674752,3456.8,3455.1,7.49]
[1721294478108,2.4464,3456.2,3455.1,7.49]
[1721294478315,1.2137382,3455.9,3455.2,0.749]